[Event "Titled Tuesday Blitz July 4 Late 2023"]
[White "reevecanada"]
[Black "Pein, Jonathan"]
[BlackFideId "417092"]
[WhiteElo "2564"]
[BlackElo "2415"]
[Result "0-1"]
[Round "3"]
[TimeControl "180+2"]
[Date "2023.07.04"]
[WhiteClock "0:00:03"]
[BlackClock "0:00:23"]
[Board "93"]

1. e4 {[%clk 0:03:00]}  e5 {[%clk 0:02:59]} 2. Nf3 {[%clk 0:03:00]}  d6 {[%clk 0:03:00]} 3. d4 {[%clk 0:02:59]}  exd4 {[%clk 0:03:01]} 4. Qxd4 {[%clk 0:03:00]}  Nf6 {[%clk 0:03:01]} 5. Bb5+ {[%clk 0:02:59]}  c6 {[%clk 0:03:02]} 6. Bc4 {[%clk 0:02:59]}  Be7 {[%clk 0:03:01]} 7. Nc3 {[%clk 0:02:58]}  b5 {[%clk 0:03:00]} 8. Bd3 {[%clk 0:02:57]}  O-O {[%clk 0:02:56]} 9. O-O {[%clk 0:02:56]}  Nbd7 {[%clk 0:02:54]} 10. e5 {[%clk 0:02:55]}  dxe5 {[%clk 0:02:54]} 11. Nxe5 {[%clk 0:02:55]}  Bc5 {[%clk 0:02:31]} 12. Qf4 {[%clk 0:02:19]}  Bd6 {[%clk 0:02:25]} 13. Nxc6 {[%clk 0:02:17]}  Bxf4 {[%clk 0:02:25]} 14. Nxd8 {[%clk 0:02:17]}  Bxc1 {[%clk 0:02:25]} 15. Raxc1 {[%clk 0:02:16]}  Rxd8 {[%clk 0:02:24]} 16. Nxb5 {[%clk 0:02:16]}  Ne5 {[%clk 0:02:18]} 17. Be2 {[%clk 0:02:15]}  Bf5 {[%clk 0:02:08]} 18. h3 {[%clk 0:02:11]}  a6 {[%clk 0:02:07]} 19. Nc7 {[%clk 0:02:09]}  Rac8 {[%clk 0:01:54]} 20. Nxa6 {[%clk 0:02:03]}  Rxc2 {[%clk 0:01:55]} 21. Rxc2 {[%clk 0:01:59]}  Bxc2 {[%clk 0:01:56]} 22. b4 {[%clk 0:01:55]}  Rd2 {[%clk 0:01:52]} 23. Re1 {[%clk 0:01:47]}  Nd3 {[%clk 0:01:43]} 24. Bxd3 {[%clk 0:01:44]}  Bxd3 {[%clk 0:01:44]} 25. Nc5 {[%clk 0:01:44]}  g6 {[%clk 0:01:39]} 26. Nxd3 {[%clk 0:01:42]}  Rxd3 {[%clk 0:01:40]} 27. Rb1 {[%clk 0:01:42]}  Ra3 {[%clk 0:01:38]} 28. Rb2 {[%clk 0:01:42]}  Nd7 {[%clk 0:01:38]} 29. Kf1 {[%clk 0:01:41]}  Kf8 {[%clk 0:01:38]} 30. Ke2 {[%clk 0:01:41]}  Ke7 {[%clk 0:01:38]} 31. Rc2 {[%clk 0:01:33]}  Kd6 {[%clk 0:01:38]} 32. Rd2+ {[%clk 0:01:29]}  Kc7 {[%clk 0:01:37]} 33. b5 {[%clk 0:01:29]}  Ra5 {[%clk 0:01:33]} 34. Rc2+ {[%clk 0:01:05]}  Kb7 {[%clk 0:01:33]} 35. Rb2 {[%clk 0:01:01]}  Kb6 {[%clk 0:01:32]} 36. Rd2 {[%clk 0:01:01]}  Kc7 {[%clk 0:01:09]} 37. Rc2+ {[%clk 0:00:59]}  Kd6 {[%clk 0:01:04]} 38. Rd2+ {[%clk 0:00:58]}  Ke6 {[%clk 0:01:01]} 39. Rb2 {[%clk 0:00:58]}  Nb6 {[%clk 0:01:02]} 40. Kd3 {[%clk 0:00:58]}  Kd5 {[%clk 0:01:00]} 41. Kc3 {[%clk 0:00:48]}  Na4+ {[%clk 0:00:58]} 42. Kb4 {[%clk 0:00:48]}  Rxb5+ {[%clk 0:00:52]} 43. Kxb5 {[%clk 0:00:47]}  Nxb2 {[%clk 0:00:53]} 44. a4 {[%clk 0:00:47]}  Nxa4 {[%clk 0:00:52]} 45. Kxa4 {[%clk 0:00:48]}  Kd4 {[%clk 0:00:53]} 46. Kb4 {[%clk 0:00:27]}  Kd3 {[%clk 0:00:53]} 47. Kc5 {[%clk 0:00:22]}  Ke2 {[%clk 0:00:50]} 48. f4 {[%clk 0:00:18]}  Ke3 {[%clk 0:00:50]} 49. f5 {[%clk 0:00:16]}  gxf5 {[%clk 0:00:50]} 50. Kd5 {[%clk 0:00:16]}  Kf4 {[%clk 0:00:44]} 51. h4 {[%clk 0:00:13]}  h5 {[%clk 0:00:44]} 52. Kd4 {[%clk 0:00:11]}  f6 {[%clk 0:00:30]} 53. Kd3 {[%clk 0:00:11]}  Kg3 {[%clk 0:00:28]} 54. Ke3 {[%clk 0:00:12]}  f4+ {[%clk 0:00:23]} 55. Ke4 {[%clk 0:00:10]}  Kg4 {[%clk 0:00:23]} 56. Kd5 {[%clk 0:00:06]}  Kxh4 {[%clk 0:00:24]} 57. Ke4 {[%clk 0:00:06]}  Kg3 {[%clk 0:00:24]} 58. Kf5 {[%clk 0:00:03]}  h4 {[%clk 0:00:23]} 0-1


[Site "https://www.chess.com"]

[Event "Titled Tuesday Blitz July 4 Late 2023"]
[White "GAO"]
[Black "Bruedigam, Martin"]
[BlackFideId "24608033"]
[WhiteElo "2413"]
[BlackElo "2560"]
[Result "0-1"]
[Round "3"]
[TimeControl "180+2"]
[Date "2023.07.04"]
[WhiteClock "0:00:13"]
[BlackClock "0:00:44"]
[Board "95"]

1. Nf3 {[%clk 0:03:00]}  Nf6 {[%clk 0:02:55]} 2. b3 {[%clk 0:03:01]}  g6 {[%clk 0:02:51]} 3. Bb2 {[%clk 0:03:01]}  Bg7 {[%clk 0:02:52]} 4. g3 {[%clk 0:03:00]}  O-O {[%clk 0:02:51]} 5. Bg2 {[%clk 0:03:00]}  c6 {[%clk 0:02:50]} 6. O-O {[%clk 0:03:00]}  d5 {[%clk 0:02:51]} 7. d4 {[%clk 0:03:00]}  Bf5 {[%clk 0:02:50]} 8. c4 {[%clk 0:03:00]}  e6 {[%clk 0:02:47]} 9. Nc3 {[%clk 0:03:00]}  Ne4 {[%clk 0:02:47]} 10. Rc1 {[%clk 0:02:57]}  Nxc3 {[%clk 0:02:46]} 11. Bxc3 {[%clk 0:02:57]}  Be4 {[%clk 0:02:47]} 12. e3 {[%clk 0:02:51]}  Re8 {[%clk 0:02:46]} 13. Bh3 {[%clk 0:02:48]}  Bxf3 {[%clk 0:02:44]} 14. Qxf3 {[%clk 0:02:48]}  Nd7 {[%clk 0:02:44]} 15. e4 {[%clk 0:02:43]}  dxe4 {[%clk 0:02:43]} 16. Qxe4 {[%clk 0:02:44]}  Nb6 {[%clk 0:02:35]} 17. Rfd1 {[%clk 0:02:32]}  Qe7 {[%clk 0:02:27]} 18. Bg2 {[%clk 0:02:27]}  Rad8 {[%clk 0:02:27]} 19. Ba1 {[%clk 0:02:07]}  Rd7 {[%clk 0:02:25]} 20. h4 {[%clk 0:01:54]}  h5 {[%clk 0:02:23]} 21. Qe2 {[%clk 0:01:42]}  Red8 {[%clk 0:02:23]} 22. Qe4 {[%clk 0:01:27]}  Nc8 {[%clk 0:02:22]} 23. Rc2 {[%clk 0:01:23]}  Nd6 {[%clk 0:02:21]} 24. Qd3 {[%clk 0:01:21]}  Nf5 {[%clk 0:02:20]} 25. Rcd2 {[%clk 0:01:15]}  Bxd4 {[%clk 0:02:14]} 26. Bxd4 {[%clk 0:01:14]}  Rxd4 {[%clk 0:02:14]} 27. Qe2 {[%clk 0:01:06]}  Rxd2 {[%clk 0:02:10]} 28. Rxd2 {[%clk 0:01:06]}  Rxd2 {[%clk 0:02:08]} 29. Qxd2 {[%clk 0:01:07]}  c5 {[%clk 0:02:08]} 30. Be4 {[%clk 0:01:04]}  Nd4 {[%clk 0:02:07]} 31. Kg2 {[%clk 0:01:01]}  b6 {[%clk 0:02:07]} 32. Qf4 {[%clk 0:01:00]}  Kg7 {[%clk 0:02:06]} 33. Qe5+ {[%clk 0:00:59]}  Kh6 {[%clk 0:01:50]} 34. Qf4+ {[%clk 0:00:56]}  Kh7 {[%clk 0:01:49]} 35. Qe5 {[%clk 0:00:55]}  Kg8 {[%clk 0:01:46]} 36. Qb8+ {[%clk 0:00:54]}  Kg7 {[%clk 0:01:46]} 37. Qe5+ {[%clk 0:00:54]}  f6 {[%clk 0:01:42]} 38. Qb8 {[%clk 0:00:54]}  f5 {[%clk 0:01:40]} 39. Bb7 {[%clk 0:00:53]}  f4 {[%clk 0:01:33]} 40. Be4 {[%clk 0:00:40]}  fxg3 {[%clk 0:01:26]} 41. fxg3 {[%clk 0:00:39]}  Nf5 {[%clk 0:01:19]} 42. Qe5+ {[%clk 0:00:34]}  Kh7 {[%clk 0:01:15]} 43. Bf3 {[%clk 0:00:26]}  Qd6 {[%clk 0:01:11]} 44. Qf6 {[%clk 0:00:20]}  Qxg3+ {[%clk 0:01:10]} 45. Kf1 {[%clk 0:00:18]}  Qxf3+ {[%clk 0:01:10]} 46. Ke1 {[%clk 0:00:19]}  Qe3+ {[%clk 0:01:09]} 47. Kd1 {[%clk 0:00:19]}  Ng7 {[%clk 0:01:09]} 48. Qf7 {[%clk 0:00:18]}  Qd4+ {[%clk 0:01:05]} 49. Kc1 {[%clk 0:00:18]}  Qxh4 {[%clk 0:01:03]} 50. Kb1 {[%clk 0:00:17]}  Qe4+ {[%clk 0:01:01]} 51. Kb2 {[%clk 0:00:17]}  Qa8 {[%clk 0:01:01]} 52. Ka3 {[%clk 0:00:17]}  a6 {[%clk 0:00:52]} 53. Ka4 {[%clk 0:00:17]}  Qc6+ {[%clk 0:00:52]} 54. Ka3 {[%clk 0:00:17]}  b5 {[%clk 0:00:53]} 55. cxb5 {[%clk 0:00:14]}  axb5 {[%clk 0:00:52]} 56. Qa7 {[%clk 0:00:14]}  Qd6 {[%clk 0:00:50]} 57. Kb2 {[%clk 0:00:15]}  b4 {[%clk 0:00:50]} 58. Qb7 {[%clk 0:00:15]}  Qe5+ {[%clk 0:00:50]} 59. Kb1 {[%clk 0:00:15]}  h4 {[%clk 0:00:50]} 60. Qg2 {[%clk 0:00:15]}  Qf5+ {[%clk 0:00:48]} 61. Ka1 {[%clk 0:00:15]}  h3 {[%clk 0:00:48]} 62. Qc2 {[%clk 0:00:15]}  Qxc2 {[%clk 0:00:47]} 63. a4 {[%clk 0:00:15]}  h2 {[%clk 0:00:43]} 64. a5 {[%clk 0:00:13]}  h1=Q# {[%clk 0:00:44]} 0-1


[Site "https://www.chess.com"]

[Event "Titled Tuesday Blitz July 4 Late 2023"]
[White "AdvanceGuard4"]
[Black "Mikhalsky, Vladimir"]
[BlackFideId "14144352"]
[WhiteElo "2557"]
[BlackElo "2413"]
[Result "0-1"]
[Round "3"]
[TimeControl "180+2"]
[Date "2023.07.04"]
[WhiteClock "0:00:00"]
[BlackClock "0:00:11"]
[Board "96"]

1. d4 {[%clk 0:03:00]}  Nf6 {[%clk 0:02:54]} 2. Bf4 {[%clk 0:03:00]}  g6 {[%clk 0:02:50]} 3. Nc3 {[%clk 0:02:59]}  Bg7 {[%clk 0:02:47]} 4. e4 {[%clk 0:02:59]}  O-O {[%clk 0:02:47]} 5. Qd2 {[%clk 0:03:00]}  d5 {[%clk 0:02:44]} 6. e5 {[%clk 0:02:57]}  Ne4 {[%clk 0:02:43]} 7. Nxe4 {[%clk 0:02:57]}  dxe4 {[%clk 0:02:44]} 8. O-O-O {[%clk 0:02:53]}  c5 {[%clk 0:02:30]} 9. dxc5 {[%clk 0:02:52]}  Qxd2+ {[%clk 0:02:24]} 10. Rxd2 {[%clk 0:02:50]}  Nd7 {[%clk 0:02:24]} 11. e6 {[%clk 0:02:42]}  Nxc5 {[%clk 0:02:05]} 12. exf7+ {[%clk 0:02:43]}  Rxf7 {[%clk 0:02:03]} 13. Be3 {[%clk 0:02:30]}  b6 {[%clk 0:01:45]} 14. Bc4 {[%clk 0:01:28]}  Be6 {[%clk 0:01:43]} 15. Bxe6 {[%clk 0:01:28]}  Nxe6 {[%clk 0:01:42]} 16. Ne2 {[%clk 0:01:26]}  Rc8 {[%clk 0:01:41]} 17. Ng3 {[%clk 0:01:20]}  Nc5 {[%clk 0:01:37]} 18. Rhd1 {[%clk 0:01:07]}  Nd3+ {[%clk 0:01:23]} 19. Kb1 {[%clk 0:01:07]}  Nxb2 {[%clk 0:01:20]} 20. Rd8+ {[%clk 0:01:07]}  Rf8 {[%clk 0:01:11]} 21. Rxf8+ {[%clk 0:00:53]}  Kxf8 {[%clk 0:01:10]} 22. Rd7 {[%clk 0:00:49]}  a5 {[%clk 0:00:42]} 23. Nxe4 {[%clk 0:00:44]}  Nc4 {[%clk 0:00:41]} 24. Bc1 {[%clk 0:00:41]}  Ke8 {[%clk 0:00:33]} 25. Rb7 {[%clk 0:00:38]}  Rc6 {[%clk 0:00:29]} 26. Nd2 {[%clk 0:00:33]}  Nd6 {[%clk 0:00:26]} 27. Rb8+ {[%clk 0:00:32]}  Kf7 {[%clk 0:00:26]} 28. Bb2 {[%clk 0:00:31]}  Bh6 {[%clk 0:00:24]} 29. Nf3 {[%clk 0:00:32]}  Nc4 {[%clk 0:00:23]} 30. Bd4 {[%clk 0:00:27]}  Rd6 {[%clk 0:00:20]} 31. Rh8 {[%clk 0:00:24]}  Nd2+ {[%clk 0:00:19]} 32. Kb2 {[%clk 0:00:20]}  Nxf3 {[%clk 0:00:18]} 33. Rxh7+ {[%clk 0:00:20]}  Ke6 {[%clk 0:00:18]} 34. gxf3 {[%clk 0:00:17]}  Rxd4 {[%clk 0:00:17]} 35. Rxh6 {[%clk 0:00:18]}  Kf6 {[%clk 0:00:18]} 36. h4 {[%clk 0:00:16]}  Rb4+ {[%clk 0:00:17]} 37. Kc1 {[%clk 0:00:15]}  Rf4 {[%clk 0:00:17]} 38. h5 {[%clk 0:00:15]}  Rxf3 {[%clk 0:00:17]} 39. Rxg6+ {[%clk 0:00:16]}  Kf7 {[%clk 0:00:17]} 40. Rxb6 {[%clk 0:00:15]}  Rxf2 {[%clk 0:00:18]} 41. h6 {[%clk 0:00:15]}  Rh2 {[%clk 0:00:18]} 42. a3 {[%clk 0:00:12]}  a4 {[%clk 0:00:17]} 43. c4 {[%clk 0:00:11]}  Rh4 {[%clk 0:00:16]} 44. c5 {[%clk 0:00:10]}  Rc4+ {[%clk 0:00:15]} 45. Kd2 {[%clk 0:00:03]}  Rxc5 {[%clk 0:00:15]} 46. Kd3 {[%clk 0:00:04]}  Rh5 {[%clk 0:00:15]} 47. Kc4 {[%clk 0:00:03]}  e6 {[%clk 0:00:12]} 48. Rb7+ {[%clk 0:00:02]}  Kg6 {[%clk 0:00:12]} 49. Re7 {[%clk 0:00:00]}  Kf6 {[%clk 0:00:11]} 0-1


[Site "https://www.chess.com"]

[Event "Titled Tuesday Blitz July 4 Late 2023"]
[White "Toolin, Christopher"]
[Black "Ambartsumova, Karina"]
[WhiteFideId "2024543"]
[BlackFideId "4166299"]
[WhiteElo "2387"]
[BlackElo "2552"]
[Result "1-0"]
[Round "3"]
[TimeControl "180+2"]
[Date "2023.07.04"]
[WhiteClock "0:00:06"]
[BlackClock "0:00:00"]
[Board "103"]

1. d4 {[%clk 0:03:00]}  Nf6 {[%clk 0:02:59]} 2. c4 {[%clk 0:03:00]}  e6 {[%clk 0:02:59]} 3. Nf3 {[%clk 0:03:00]}  c5 {[%clk 0:02:59]} 4. d5 {[%clk 0:02:58]}  exd5 {[%clk 0:03:00]} 5. cxd5 {[%clk 0:02:58]}  Bd6 {[%clk 0:03:01]} 6. g3 {[%clk 0:02:55]}  O-O {[%clk 0:03:01]} 7. Bg2 {[%clk 0:02:55]}  a6 {[%clk 0:03:01]} 8. a4 {[%clk 0:02:55]}  Bc7 {[%clk 0:03:00]} 9. O-O {[%clk 0:02:52]}  d6 {[%clk 0:03:00]} 10. Nc3 {[%clk 0:02:45]}  Nbd7 {[%clk 0:03:00]} 11. Bf4 {[%clk 0:02:38]}  Re8 {[%clk 0:02:59]} 12. Nd2 {[%clk 0:02:37]}  Nf8 {[%clk 0:02:59]} 13. Qc2 {[%clk 0:02:34]}  Ng6 {[%clk 0:02:58]} 14. Bg5 {[%clk 0:02:30]}  h6 {[%clk 0:02:55]} 15. Bxf6 {[%clk 0:02:29]}  Qxf6 {[%clk 0:02:56]} 16. Nc4 {[%clk 0:02:27]}  Rb8 {[%clk 0:02:48]} 17. a5 {[%clk 0:02:21]}  Bd7 {[%clk 0:02:45]} 18. e4 {[%clk 0:02:07]}  Bb5 {[%clk 0:02:40]} 19. Nxb5 {[%clk 0:02:03]}  axb5 {[%clk 0:02:41]} 20. Ne3 {[%clk 0:01:59]}  Ra8 {[%clk 0:02:20]} 21. Qb3 {[%clk 0:01:48]}  b4 {[%clk 0:02:02]} 22. f4 {[%clk 0:01:30]}  Rxa5 {[%clk 0:01:39]} 23. Nc4 {[%clk 0:01:22]}  Rxa1 {[%clk 0:01:35]} 24. Rxa1 {[%clk 0:01:23]}  Qd4+ {[%clk 0:01:31]} 25. Kh1 {[%clk 0:01:22]}  b5 {[%clk 0:01:17]} 26. Ne3 {[%clk 0:01:13]}  c4 {[%clk 0:01:15]} 27. Nf5 {[%clk 0:01:13]}  Qd2 {[%clk 0:00:46]} 28. Qa2 {[%clk 0:00:57]}  b3 {[%clk 0:00:35]} 29. Qb1 {[%clk 0:00:52]}  b4 {[%clk 0:00:25]} 30. Qc1 {[%clk 0:00:44]}  Qxc1+ {[%clk 0:00:21]} 31. Rxc1 {[%clk 0:00:45]}  c3 {[%clk 0:00:22]} 32. Nd4 {[%clk 0:00:32]}  cxb2 {[%clk 0:00:14]} 33. Rb1 {[%clk 0:00:31]}  Ra8 {[%clk 0:00:14]} 34. Nxb3 {[%clk 0:00:23]}  Ra2 {[%clk 0:00:14]} 35. Bf1 {[%clk 0:00:18]}  Nf8 {[%clk 0:00:12]} 36. Kg1 {[%clk 0:00:18]}  Bb6+ {[%clk 0:00:11]} 37. Kg2 {[%clk 0:00:18]}  Nd7 {[%clk 0:00:12]} 38. Kf3 {[%clk 0:00:17]}  Nc5 {[%clk 0:00:10]} 39. Bc4 {[%clk 0:00:18]}  Nxb3 {[%clk 0:00:09]} 40. Bxb3 {[%clk 0:00:18]}  Ra3 {[%clk 0:00:08]} 41. Rxb2 {[%clk 0:00:18]}  Bd4 {[%clk 0:00:09]} 42. Rb1 {[%clk 0:00:19]}  Kf8 {[%clk 0:00:08]} 43. Ke2 {[%clk 0:00:19]}  Bc3 {[%clk 0:00:08]} 44. Kd3 {[%clk 0:00:18]}  Ke7 {[%clk 0:00:08]} 45. Kc4 {[%clk 0:00:18]}  g5 {[%clk 0:00:07]} 46. fxg5 {[%clk 0:00:18]}  hxg5 {[%clk 0:00:08]} 47. Rf1 {[%clk 0:00:16]}  f6 {[%clk 0:00:06]} 48. h4 {[%clk 0:00:14]}  gxh4 {[%clk 0:00:05]} 49. gxh4 {[%clk 0:00:15]}  Ra8 {[%clk 0:00:06]} 50. Bd1 {[%clk 0:00:12]}  Rc8+ {[%clk 0:00:06]} 51. Kb3 {[%clk 0:00:12]}  Bd2 {[%clk 0:00:06]} 52. Bg4 {[%clk 0:00:10]}  Rc3+ {[%clk 0:00:06]} 53. Kb2 {[%clk 0:00:10]}  Rg3 {[%clk 0:00:05]} 54. Bf5 {[%clk 0:00:10]}  Rg2 {[%clk 0:00:05]} 55. Kb3 {[%clk 0:00:09]}  Rh2 {[%clk 0:00:04]} 56. Rd1 {[%clk 0:00:07]}  Bc3 {[%clk 0:00:04]} 57. Rg1 {[%clk 0:00:06]}  Rxh4 {[%clk 0:00:04]} 58. Rg7+ {[%clk 0:00:06]}  Kf8 {[%clk 0:00:00]} 59. Rd7 {[%clk 0:00:06]} 1-0


[Site "https://www.chess.com"]

[Event "Titled Tuesday Blitz July 4 Late 2023"]
[White "Ismagilov, Damir"]
[Black "Cooklev, Steven"]
[WhiteFideId "34199982"]
[BlackFideId "2050552"]
[WhiteElo "2550"]
[BlackElo "2378"]
[Result "1-0"]
[Round "3"]
[TimeControl "180+2"]
[Date "2023.07.04"]
[WhiteClock "0:00:45"]
[BlackClock "0:00:00"]
[Board "104"]

1. d4 {[%clk 0:03:00]}  Nf6 {[%clk 0:02:59]} 2. Bf4 {[%clk 0:03:00]}  d5 {[%clk 0:02:59]} 3. e3 {[%clk 0:03:00]}  c5 {[%clk 0:02:59]} 4. c3 {[%clk 0:03:00]}  Nc6 {[%clk 0:02:59]} 5. Nd2 {[%clk 0:03:00]}  Bg4 {[%clk 0:02:59]} 6. Qb3 {[%clk 0:03:00]}  Qc8 {[%clk 0:02:58]} 7. Ngf3 {[%clk 0:03:00]}  e6 {[%clk 0:02:58]} 8. h3 {[%clk 0:02:59]}  Bh5 {[%clk 0:02:53]} 9. Be2 {[%clk 0:02:58]}  Be7 {[%clk 0:02:48]} 10. O-O {[%clk 0:02:58]}  O-O {[%clk 0:02:48]} 11. Rfe1 {[%clk 0:02:58]}  h6 {[%clk 0:02:41]} 12. a4 {[%clk 0:02:56]}  Bg6 {[%clk 0:02:30]} 13. Ne5 {[%clk 0:02:56]}  Nxe5 {[%clk 0:02:26]} 14. Bxe5 {[%clk 0:02:53]}  Nd7 {[%clk 0:02:13]} 15. Bh2 {[%clk 0:02:52]}  c4 {[%clk 0:02:10]} 16. Qd1 {[%clk 0:02:52]}  b6 {[%clk 0:01:53]} 17. Bf3 {[%clk 0:02:50]}  f5 {[%clk 0:01:48]} 18. b3 {[%clk 0:02:51]}  cxb3 {[%clk 0:01:47]} 19. Qxb3 {[%clk 0:02:51]}  Bf7 {[%clk 0:01:36]} 20. Rac1 {[%clk 0:02:37]}  Nf6 {[%clk 0:01:06]} 21. c4 {[%clk 0:02:35]}  Qd7 {[%clk 0:01:06]} 22. cxd5 {[%clk 0:02:31]}  exd5 {[%clk 0:01:05]} 23. Rc7 {[%clk 0:02:29]}  Qd8 {[%clk 0:01:03]} 24. Rec1 {[%clk 0:02:25]}  Bd6 {[%clk 0:01:02]} 25. Bxd6 {[%clk 0:02:19]}  Qxd6 {[%clk 0:01:03]} 26. Be2 {[%clk 0:02:17]}  f4 {[%clk 0:00:49]} 27. R1c6 {[%clk 0:02:11]}  Qd8 {[%clk 0:00:49]} 28. Ba6 {[%clk 0:01:21]}  fxe3 {[%clk 0:00:47]} 29. fxe3 {[%clk 0:01:22]}  Kh8 {[%clk 0:00:34]} 30. Nf3 {[%clk 0:01:19]}  Be8 {[%clk 0:00:27]} 31. Rc8 {[%clk 0:00:55]}  Rxc8 {[%clk 0:00:25]} 32. Rxc8 {[%clk 0:00:55]}  Qe7 {[%clk 0:00:24]} 33. Ne5 {[%clk 0:00:54]}  Kh7 {[%clk 0:00:20]} 34. Bd3+ {[%clk 0:00:51]}  Kg8 {[%clk 0:00:13]} 35. Bg6 {[%clk 0:00:45]}  Bxg6 {[%clk 0:00:02]} 36. Nxg6 {[%clk 0:00:46]}  Qd6 {[%clk 0:00:00]} 37. Rxf8+ {[%clk 0:00:45]} 1-0


[Site "https://www.chess.com"]

[Event "Titled Tuesday Blitz July 4 Late 2023"]
[White "Besedes, Danilo"]
[Black "Kanyamarala, Trisha"]
[WhiteFideId "946796"]
[BlackFideId "45004722"]
[WhiteElo "2545"]
[BlackElo "2377"]
[Result "1-0"]
[Round "3"]
[TimeControl "180+2"]
[Date "2023.07.04"]
[WhiteClock "0:01:22"]
[BlackClock "0:00:35"]
[Board "107"]

1. b3 {[%clk 0:02:57]}  e5 {[%clk 0:02:58]} 2. Bb2 {[%clk 0:02:53]}  Nc6 {[%clk 0:02:58]} 3. e3 {[%clk 0:02:48]}  Nf6 {[%clk 0:02:57]} 4. Bb5 {[%clk 0:02:48]}  d6 {[%clk 0:02:53]} 5. d4 {[%clk 0:02:44]}  exd4 {[%clk 0:02:50]} 6. exd4 {[%clk 0:02:44]}  d5 {[%clk 0:02:51]} 7. Nf3 {[%clk 0:02:44]}  Bb4+ {[%clk 0:02:49]} 8. Nbd2 {[%clk 0:02:43]}  O-O {[%clk 0:02:47]} 9. O-O {[%clk 0:02:42]}  Bg4 {[%clk 0:02:47]} 10. h3 {[%clk 0:02:39]}  Bh5 {[%clk 0:02:46]} 11. Be2 {[%clk 0:02:38]}  Ne4 {[%clk 0:02:42]} 12. Nxe4 {[%clk 0:02:25]}  dxe4 {[%clk 0:02:41]} 13. Ne5 {[%clk 0:02:26]}  Bxe2 {[%clk 0:02:32]} 14. Qxe2 {[%clk 0:02:26]}  Re8 {[%clk 0:01:59]} 15. Qxe4 {[%clk 0:02:07]}  f6 {[%clk 0:01:50]} 16. Nxc6 {[%clk 0:02:06]}  Rxe4 {[%clk 0:01:48]} 17. Nxd8 {[%clk 0:02:06]}  Rxd8 {[%clk 0:01:48]} 18. a3 {[%clk 0:02:06]}  Ba5 {[%clk 0:01:43]} 19. b4 {[%clk 0:01:58]}  Bb6 {[%clk 0:01:43]} 20. Rfe1 {[%clk 0:01:58]}  Rf4 {[%clk 0:01:37]} 21. g3 {[%clk 0:01:51]}  Rf5 {[%clk 0:01:32]} 22. Rad1 {[%clk 0:01:49]}  Kf7 {[%clk 0:01:29]} 23. c4 {[%clk 0:01:44]}  c6 {[%clk 0:01:27]} 24. Kg2 {[%clk 0:01:42]}  a5 {[%clk 0:01:26]} 25. Re4 {[%clk 0:01:42]}  axb4 {[%clk 0:01:23]} 26. axb4 {[%clk 0:01:42]}  Ra8 {[%clk 0:01:22]} 27. Rde1 {[%clk 0:01:39]}  Ra2 {[%clk 0:01:20]} 28. R1e2 {[%clk 0:01:37]}  Kg6 {[%clk 0:01:14]} 29. g4 {[%clk 0:01:28]}  Rg5 {[%clk 0:00:49]} 30. f4 {[%clk 0:01:27]}  f5 {[%clk 0:00:39]} 31. Re6+ {[%clk 0:01:27]}  Kf7 {[%clk 0:00:39]} 32. fxg5 {[%clk 0:01:22]}  Rxb2 {[%clk 0:00:38]} 33. Rxb2 {[%clk 0:01:21]}  Kxe6 {[%clk 0:00:38]} 34. Re2+ {[%clk 0:01:22]}  Kd6 {[%clk 0:00:35]} 35. c5+ {[%clk 0:01:22]} 1-0


[Site "https://www.chess.com"]

[Event "Titled Tuesday Blitz July 4 Late 2023"]
[White "Kovacsy, Barnabas"]
[Black "Gasparyan, David"]
[WhiteFideId "769290"]
[BlackFideId "13311980"]
[WhiteElo "2364"]
[BlackElo "2543"]
[Result "0-1"]
[Round "3"]
[TimeControl "180+2"]
[Date "2023.07.04"]
[WhiteClock "0:00:00"]
[BlackClock "0:00:13"]
[Board "110"]

1. e4 {[%clk 0:03:00]}  c5 {[%clk 0:02:58]} 2. Nf3 {[%clk 0:03:00]}  Nc6 {[%clk 0:02:58]} 3. d4 {[%clk 0:03:00]}  cxd4 {[%clk 0:02:57]} 4. Nxd4 {[%clk 0:03:01]}  Qc7 {[%clk 0:02:56]} 5. Nc3 {[%clk 0:02:57]}  e6 {[%clk 0:02:56]} 6. Be3 {[%clk 0:02:55]}  Bb4 {[%clk 0:02:53]} 7. Nxc6 {[%clk 0:02:37]}  Qxc6 {[%clk 0:02:47]} 8. Qd4 {[%clk 0:02:34]}  Bxc3+ {[%clk 0:02:45]} 9. bxc3 {[%clk 0:02:33]}  Nf6 {[%clk 0:02:43]} 10. Bd3 {[%clk 0:02:32]}  d6 {[%clk 0:02:36]} 11. O-O {[%clk 0:02:16]}  O-O {[%clk 0:02:31]} 12. Bg5 {[%clk 0:02:11]}  e5 {[%clk 0:02:31]} 13. Qe3 {[%clk 0:02:10]}  Ng4 {[%clk 0:02:29]} 14. Qg3 {[%clk 0:02:05]}  h6 {[%clk 0:02:23]} 15. Bd2 {[%clk 0:02:03]}  Kh8 {[%clk 0:02:18]} 16. h3 {[%clk 0:01:57]}  Nf6 {[%clk 0:02:17]} 17. Qh4 {[%clk 0:01:55]}  Nh7 {[%clk 0:02:13]} 18. Rab1 {[%clk 0:01:46]}  Be6 {[%clk 0:02:10]} 19. Qe7 {[%clk 0:01:34]}  Rab8 {[%clk 0:02:04]} 20. a4 {[%clk 0:01:27]}  a6 {[%clk 0:01:57]} 21. a5 {[%clk 0:01:22]}  Rfe8 {[%clk 0:01:57]} 22. Qh4 {[%clk 0:01:21]}  Qc5 {[%clk 0:01:51]} 23. Rb6 {[%clk 0:01:07]}  Qxa5 {[%clk 0:01:45]} 24. Rfb1 {[%clk 0:01:07]}  d5 {[%clk 0:01:29]} 25. exd5 {[%clk 0:00:49]}  Qxd5 {[%clk 0:01:25]} 26. c4 {[%clk 0:00:38]}  Qd8 {[%clk 0:01:12]} 27. Qe4 {[%clk 0:00:25]}  Nf6 {[%clk 0:01:04]} 28. Qxe5 {[%clk 0:00:20]}  Bxc4 {[%clk 0:01:01]} 29. Qc3 {[%clk 0:00:20]}  Bxd3 {[%clk 0:01:01]} 30. Bxh6 {[%clk 0:00:14]}  Bg6 {[%clk 0:00:55]} 31. R1b4 {[%clk 0:00:07]}  Rc8 {[%clk 0:00:38]} 32. Qb2 {[%clk 0:00:04]}  Re1+ {[%clk 0:00:33]} 33. Kh2 {[%clk 0:00:03]}  Qc7+ {[%clk 0:00:26]} 34. g3 {[%clk 0:00:03]}  Rg8 {[%clk 0:00:18]} 35. Bxg7+ {[%clk 0:00:02]}  Rxg7 {[%clk 0:00:18]} 36. Qxf6 {[%clk 0:00:03]}  Qe7 {[%clk 0:00:14]} 37. Rxb7 {[%clk 0:00:00]}  Qxf6 {[%clk 0:00:13]} 0-1


[Site "https://www.chess.com"]